fUST/lending_fUST_20250929
["ID","MTS","AMOUNT","RATE_DAILY","PERIOD"]
[388410579,1759159832904,-732.79,0.0002377,2]
[388410580,1759159832914,-512.81,0.0002377,2]
[388410581,1759159832925,-906.36,0.0002377,2]
[388410582,1759159832934,-323.46902086,0.0002377,2]
[388410583,1759159832943,-500.0,0.0002377,2]
[388410585,1759159832953,-182.34174539,0.0002377,2]
[388410587,1759159832969,-480.0,0.0002377,2]
[388410589,1759159832978,-500.0,0.0002377,2]
[388410591,1759159832988,-500.0,0.0002377,2]
[388410592,1759159832998,-500.0,0.0002377,2]
[388410594,1759159833007,-500.0,0.0002377,2]
[388410596,1759159833017,-50000.0,0.0002377,2]
[388410597,1759159833026,-568.75,0.00023771,2]
[388410599,1759159833036,-2815.55,0.00023771,2]
[388410601,1759159833046,-480.0,0.00023771,2]
[388410602,1759159833055,-683.23,0.00023771,2]
[388410603,1759159833065,-480.0,0.00023771,2]
[388410605,1759159833076,-1393.28,0.00023771,2]
[388410606,1759159833085,-547.89,0.00023771,2]
[388410608,1759159833095,-248.92935738,0.00023771,2]
[388410610,1759159833108,-6369.16,0.00023771,2]
[388410612,1759159833117,-797.57,0.00023771,2]
[388410614,1759159833129,-1204.27,0.00023771,2]
[388410616,1759159833138,-480.0,0.00023771,2]
[388410618,1759159833148,-915.2,0.00023771,2]
[388410620,1759159833158,-3371.07,0.00023771,2]
[388410621,1759159833168,-480.0,0.00023771,2]
[388410622,1759159833178,-856.9,0.00023771,2]
[388410623,1759159833187,-964.42,0.00023771,2]
[388410624,1759159833198,-480.0,0.00023771,2]
[388410625,1759159833207,-826.97,0.00023772,2]
[388410626,1759159833219,-906.0,0.00023772,2]
[388410627,1759159833230,-480.0,0.00023772,2]
[388410628,1759159833239,-1257.1,0.00023772,2]
[388410629,1759159833249,-5113.84,0.00023772,2]
[388410630,1759159833259,-480.0,0.00023772,2]
[388410631,1759159833269,-2632.05,0.00023772,2]
[388410632,1759159833279,-581.56,0.00023772,2]
[388410633,1759159833288,-498.97,0.00023772,2]
[388410634,1759159833298,-480.0,0.00023772,2]
[388410635,1759159833308,-1877.06,0.00023772,2]
[388410636,1759159833318,-484.42,0.00023772,2]
[388410637,1759159833327,-480.0,0.00023772,2]
[388410638,1759159833337,-614.95,0.00023773,2]
[388410639,1759159833350,-657.23,0.0002379,10]
[388410640,1759159833361,-709.52836486,0.000238,2]
[388410641,1759159833370,-480.0,0.00023872,2]
[388410642,1759159833380,-480.0,0.00023872,2]
[388410643,1759159833391,-480.0,0.00023872,2]
[388410644,1759159833400,-480.0,0.00023872,2]
[388410645,1759159833410,-249.87734447,0.00023872,2]
[388410646,1759159833421,-480.0,0.00023872,2]
[388410647,1759159833430,-488.84,0.00023872,2]
[388410648,1759159833440,-480.0,0.00023872,2]
[388410649,1759159833449,-480.0,0.00023872,2]
[388410650,1759159833458,-500.0,0.00023872,2]
[388410651,1759159833468,-500.0,0.00023873,2]
[388410652,1759159833478,-500.0,0.00023873,2]
[388410653,1759159833487,-500.0,0.00023873,2]
[388410654,1759159833497,-500.0,0.00023873,2]
[388410655,1759159833508,-500.0,0.00023873,2]
[388410656,1759159833518,-500.0,0.00023873,2]
[388410657,1759159833527,-500.0,0.00023873,2]
[388410658,1759159833538,-500.0,0.00023873,2]
[388410659,1759159833548,-261.58076467,0.00023873,2]
[388410660,1759159833558,-500.0,0.00023873,2]
[388410661,1759159833567,-500.0,0.00023873,2]
[388410662,1759159833576,-500.0,0.00023873,2]
[388410663,1759159833586,-500.0,0.00023873,2]
[388410664,1759159833596,-150.0,0.00023873,2]
[388410665,1759159833605,-500.0,0.00023873,2]
[388410666,1759159833615,-500.0,0.00023873,2]
[388410667,1759159833625,-496.40247978,0.00023873,2]
[388410668,1759159833634,-480.0,0.00023873,2]
[388410669,1759159833644,-733.5,0.00023873,2]
[388410670,1759159833654,-1131.39,0.00023873,2]
[388410671,1759159833663,-480.0,0.00023873,2]
[388410672,1759159833673,-546.77,0.00023873,2]
[388410673,1759159833682,-619.9,0.00023873,2]
[388410674,1759159833692,-567.73,0.00023873,2]
[388410675,1759159833702,-164.80056466,0.00023873,2]
[388410676,1759159833715,-480.0,0.00023873,2]
[388410677,1759159833725,-480.0,0.00023873,2]
[388410678,1759159833735,-480.0,0.00023873,2]
[388410679,1759159833745,-480.0,0.00023873,2]
[388410680,1759159833755,-480.0,0.00023873,2]
[388410681,1759159833765,-503.19,0.00023873,2]
[388410682,1759159833775,-480.0,0.00023873,2]
[388410683,1759159833785,-480.0,0.00023873,2]
[388410684,1759159833795,-480.0,0.00023873,2]
[388410685,1759159833805,-708.28,0.00023873,2]
[388410686,1759159833815,-690.53,0.00023873,2]
[388410687,1759159833824,-550.9,0.00023873,2]
[388410688,1759159833834,-480.0,0.00023873,2]
[388410689,1759159833845,-480.0,0.00023873,2]
[388410690,1759159833854,-480.0,0.00023873,2]
[388410691,1759159833863,-480.0,0.00023873,2]
[388410692,1759159833873,-656.33,0.00023873,2]
[388410693,1759159833883,-451.10112474,0.00023873,2]
[388410694,1759159833893,-480.0,0.00023873,2]
[388410695,1759159833903,-480.0,0.00023873,2]
[388410696,1759159833913,-740.48,0.00023873,2]
[388410697,1759159833924,-480.0,0.00023873,2]
[388410698,1759159833934,-480.0,0.00023873,2]
[388410699,1759159833944,-489.99,0.00023873,2]
[388410700,1759159833953,-480.0,0.00023873,2]
[388410701,1759159833966,-151.0,0.000239,6]
[388410702,1759159833977,-151.0,0.000239,7]
[388410703,1759159833987,-2295.99037864,0.000239,2]
[388410704,1759159833997,-711.34,0.00023984,5]
[388410705,1759159834007,-178.64442232,0.00023984,5]
[388410706,1759159834016,-88472.05053045,0.0002399,2]
[388410707,1759159834026,-151.0,0.00024,7]
[388410708,1759159834036,-13507.1880883,0.00024,2]
[388410709,1759159834048,-584.6894659,0.00024,2]
[388410710,1759159834060,-2295.99037862,0.00024005,2]
[388410711,1759159834070,-300.0,0.0002401,2]
[388410712,1759159834080,-480.0,0.00024032,2]
[388410713,1759159834089,-480.0,0.00024032,2]
[388410714,1759159834099,-480.0,0.00024032,2]
[388410715,1759159834109,-468.03272221,0.00024032,2]
[388410716,1759159834119,-618.9,0.00024032,2]
[388410717,1759159834128,-480.0,0.00024032,2]
[388410718,1759159834139,-5105.07,0.00024032,2]
[388410719,1759159834149,-480.0,0.00024032,2]
[388410720,1759159834158,-480.0,0.00024032,2]
[388410721,1759159834168,-480.0,0.00024032,2]
[388410722,1759159834177,-480.0,0.00024032,2]
[388410723,1759159834187,-3518.71,0.00024032,2]
[388410724,1759159834196,-480.0,0.00024032,2]
[388410725,1759159834206,-986.1,0.00024032,2]
[388410726,1759159834218,-480.0,0.00024032,2]
[388410727,1759159834228,-1445.33,0.00024032,2]
[388410728,1759159834239,-480.0,0.00024032,2]
[388410729,1759159834249,-1098.08,0.00024032,2]
[388410730,1759159834259,-1269.32,0.00024032,2]
[388410731,1759159834268,-480.0,0.00024032,2]
[388410732,1759159834277,-1380.48,0.00024032,2]
[388410733,1759159834287,-480.0,0.00024032,2]
[388410734,1759159834297,-480.0,0.00024032,2]
[388410735,1759159834307,-637.94,0.00024032,2]
[388410736,1759159834317,-798.45,0.00024032,2]
[388410737,1759159834328,-851.63,0.00024032,2]
[388410738,1759159834338,-821.85,0.00024032,2]
[388410739,1759159834354,-618.67,0.00024032,2]
[388410740,1759159834373,-3131.96,0.00024032,2]
[388410741,1759159834387,-752.61,0.00024032,2]
[388410742,1759159834397,-1039.32,0.00024032,2]
[388410743,1759159834408,-487.66,0.00024032,2]
[388410744,1759159834419,-590.72,0.00024032,2]
[388410745,1759159834430,-443.01149758,0.00024032,2]
[388410746,1759159834442,-1863.97,0.00024032,2]
[388410747,1759159834453,-1554.3,0.00024032,2]
[388410748,1759159834466,-2544.93,0.00024032,2]
[388410749,1759159834476,-840.85,0.00024032,2]
[388410750,1759159834486,-713.41,0.00024032,2]
[388410751,1759159834496,-480.0,0.00024032,2]
[388410752,1759159834506,-480.0,0.00024032,2]
[388410753,1759159834516,-632.85,0.00024032,2]
[388410754,1759159834526,-713.25,0.00024032,2]
[388410755,1759159834535,-12034.26,0.00024032,2]
[388410756,1759159834544,-2740.88,0.00024032,2]
[388410757,1759159834554,-658.46,0.00024032,2]
[388410758,1759159834563,-151.0,0.00024033,2]
[388410759,1759159834573,-480.0,0.00024044,2]
[388410760,1759159834583,-19.23118577,0.00024044,2]
[388410761,1759159834596,-602.41881423,0.00024044,2]
[388410762,1759159834607,-480.0,0.00024044,2]
[388410763,1759159834617,-480.0,0.00024044,2]
[388410764,1759159834627,-480.0,0.00024044,2]
[388410765,1759159834636,-722.09,0.00024044,2]
[388410766,1759159834646,-427.04594197,0.00024044,2]
[388410767,1759159834665,-500.0,0.0002377,2]
[388410768,1759159834675,-39.86438288,0.00024044,2]
[388410770,1759159838258,3703.89,0.00023758,2]
[388410771,1759159838591,-500.0,0.00023769,2]
[388410772,1759159838602,-500.0,0.00023769,2]
[388410773,1759159838612,-484.98549222,0.00023769,2]
[388410774,1759159838622,-500.0,0.00023769,2]
[388410775,1759159838632,-500.0,0.00023769,2]
[388410776,1759159838642,-500.0,0.00023769,2]
[388410777,1759159838652,-500.0,0.00023769,2]
[388410778,1759159838662,-500.0,0.00023769,2]
[388410779,1759159838672,-500.0,0.00023769,2]
[388410780,1759159838681,-500.0,0.00023769,2]
[388410781,1759159838691,-500.0,0.00023769,2]
[388410782,1759159838701,-500.0,0.00023769,2]
[388410783,1759159838711,-500.0,0.00023769,2]
[388410784,1759159838721,-500.0,0.00023769,2]
[388410785,1759159838731,-500.0,0.00023769,2]
[388410786,1759159838742,-500.0,0.00023769,2]
[388410787,1759159838753,-500.0,0.00023769,2]
[388410788,1759159838762,-239.11076392,0.00023769,2]
[388410789,1759159838773,-500.0,0.00023769,2]
[388410790,1759159838782,-500.0,0.00023769,2]
[388410791,1759159838793,-500.0,0.00023769,2]
[388410792,1759159838803,-500.0,0.00023769,2]
[388410793,1759159838814,-552.36833707,0.00023769,2]
[388410794,1759159838824,-500.0,0.00023769,2]
[388410795,1759159838834,-500.0,0.00023769,2]
[388410796,1759159838844,-500.0,0.00023769,2]
[388410797,1759159838854,-500.0,0.00023769,2]
[388410798,1759159838864,-500.0,0.00023769,2]
[388410799,1759159838875,-500.0,0.00023769,2]
[388410800,1759159838885,-500.0,0.00023769,2]
[388410801,1759159838895,-500.0,0.00023769,2]
[388410802,1759159838906,-500.0,0.00023769,2]
[388410803,1759159838917,-500.0,0.00023769,2]
[388410804,1759159838927,-500.0,0.00023769,2]
[388410805,1759159838939,-500.0,0.00023769,2]
[388410806,1759159838949,-347.45802338,0.00023769,2]
[388410807,1759159838959,-500.0,0.00023769,2]
[388410808,1759159838972,-500.0,0.00023769,2]
[388410809,1759159838982,-500.0,0.00023769,2]
[388410810,1759159838992,-500.0,0.00023769,2]
[388410811,1759159839003,-375.04178364,0.00023769,2]
[388410812,1759159839014,-500.0,0.00023769,2]
[388410813,1759159839024,-500.0,0.00023769,2]
[388410814,1759159839035,-500.0,0.00023769,2]
[388410815,1759159839045,-500.0,0.00023769,2]
[388410816,1759159839055,-500.0,0.00023769,2]
[388410817,1759159839066,-500.0,0.00023769,2]
[388410818,1759159839076,-500.0,0.00023769,2]
[388410819,1759159839087,-500.0,0.00023769,2]
[388410820,1759159839096,-500.0,0.00023769,2]
[388410821,1759159839107,-500.0,0.00023769,2]
[388410822,1759159839117,-500.0,0.00023769,2]
[388410823,1759159839127,-500.0,0.00023769,2]
[388410824,1759159839138,-500.0,0.00023769,2]
[388410825,1759159839148,-500.0,0.00023769,2]
[388410826,1759159839338,-500.0,0.00023769,2]
[388410827,1759159839358,-500.0,0.00023769,2]
[388410828,1759159839369,-500.0,0.00023769,2]
[388410829,1759159839379,-500.0,0.00023769,2]
[388410830,1759159839391,-500.0,0.00023769,2]
[388410831,1759159839401,-500.0,0.00023769,2]
[388410832,1759159839411,-500.0,0.00023769,2]
[388410833,1759159839422,-500.0,0.00023769,2]
[388410834,1759159839432,-500.0,0.00023769,2]
[388410835,1759159839442,-500.0,0.00023769,2]
[388410836,1759159839452,-500.0,0.00023769,2]
[388410837,1759159839462,-500.0,0.00023769,2]
[388410838,1759159839473,-500.0,0.00023769,2]
[388410839,1759159839483,-500.0,0.00023769,2]
[388410840,1759159839492,-422.1364738,0.00023769,2]
[388410841,1759159839502,-500.0,0.00023769,2]
[388410842,1759159839511,-500.0,0.00023769,2]
[388410843,1759159839521,-500.0,0.00023769,2]
[388410844,1759159839531,-500.0,0.00023769,2]
[388410845,1759159839540,-500.0,0.00023769,2]
[388410846,1759159839550,-500.0,0.00023769,2]
[388410847,1759159839559,-500.0,0.00023769,2]
[388410848,1759159839568,-500.0,0.00023769,2]
[388410849,1759159839578,-500.0,0.00023769,2]
[388410850,1759159839587,-500.0,0.00023769,2]
[388410851,1759159839597,-500.0,0.00023769,2]
[388410852,1759159839608,-500.0,0.00023769,2]
[388410853,1759159839622,-500.0,0.00023769,2]
[388410854,1759159839632,-450.0,0.00023769,2]
[388410855,1759159839643,-500.0,0.00023769,2]
[388410856,1759159839653,-500.0,0.00023769,2]
[388410857,1759159839662,-500.0,0.00023769,2]
[388410858,1759159839672,-500.0,0.0002377,2]
[388410859,1759159839681,-536.36,0.00023772,2]
[388410860,1759159839691,-480.0,0.00023872,2]
[388410861,1759159839701,-480.0,0.00023872,2]
[388410862,1759159839711,-3703.89,0.00024032,2]
[388410863,1759159839724,-332.43967515,0.00024044,2]
[388410864,1759159839734,-573.66,0.00024044,2]
[388410865,1759159839745,-1590.13,0.00024044,2]
[388410866,1759159839754,-1130.74,0.00024044,2]
[388410867,1759159839765,-505.45,0.00024044,2]
[388410868,1759159839777,-480.0,0.00024044,2]
[388410869,1759159839790,-1492.51,0.00024044,2]
[388410870,1759159839802,-480.0,0.00024044,2]
[388410871,1759159839813,-480.0,0.00024044,2]
[388410872,1759159839826,-652.4,0.00024044,2]
[388410873,1759159839837,-480.0,0.00024044,2]
[388410874,1759159839848,-480.0,0.00024044,2]
[388410875,1759159839861,-461.18980399,0.00024044,2]
[388410876,1759159839873,-904.84,0.00024044,2]
[388410877,1759159839885,-951.8,0.00024044,2]
[388410878,1759159839897,-480.0,0.00024044,2]
[388410879,1759159839905,-746.77,0.00024044,2]
[388410880,1759159839913,-480.0,0.00024044,2]
[388410881,1759159839919,-480.0,0.00024044,2]
[388410882,1759159839926,-851.18,0.00024044,2]
[388410883,1759159839935,-480.0,0.00024044,2]
[388410884,1759159839943,-667.27,0.00024044,2]
[388410885,1759159839952,-1408.62,0.00024044,2]
[388410886,1759159839960,-480.0,0.00024044,2]
[388410887,1759159839970,-2514.38,0.00024044,2]
[388410888,1759159839977,-480.0,0.00024044,2]
[388410889,1759159839986,-598.91,0.00024044,2]
[388410890,1759159839996,-873.82,0.00024044,2]
[388410891,1759159840006,-3012.47,0.00024044,2]
[388410892,1759159840015,-613.16,0.00024044,2]
[388410893,1759159840025,-732.79,0.00024044,2]
[388410894,1759159840034,-512.81,0.00024044,2]
[388410895,1759159840044,-906.36,0.00024044,2]
[388410896,1759159840054,-480.0,0.00024044,2]
[388410897,1759159840062,-522.76,0.00024045,2]
[388410898,1759159840072,-625.95,0.00024045,2]
[388410899,1759159840082,-572.78563454,0.00024045,2]
[388410901,1759159840091,-214.41420306,0.00024045,2]
[388410903,1759159840100,-480.0,0.00024045,2]
[388410905,1759159840110,-623.01,0.00024045,2]
[388410906,1759159840120,-480.0,0.00024045,2]
[388410907,1759159840129,-480.0,0.00024045,2]
[388410909,1759159840138,-480.0,0.00024045,2]
[388410911,1759159840148,-480.0,0.00024045,2]
[388410913,1759159840158,-637.16,0.00024045,2]
[388410915,1759159840168,-480.0,0.00024045,2]
[388410917,1759159840177,-480.0,0.00024045,2]
[388410919,1759159840188,-1505.62,0.00024045,2]
[388410924,1759159840198,-480.0,0.00024045,2]
[388410927,1759159840207,-662.67,0.00024045,2]
[388410929,1759159840218,-480.0,0.00024045,2]
[388410930,1759159840228,-589.46,0.00024045,2]
[388410931,1759159840236,-1228.79,0.00024045,2]
[388410932,1759159840246,-1213.7,0.00024045,2]
[388410933,1759159840255,-609.37,0.00024045,2]
[388410934,1759159840264,-480.0,0.00024045,2]
[388410935,1759159840273,-530.88,0.00024045,2]
[388410936,1759159840282,-716.95,0.00024045,2]
[388410937,1759159840292,-670.69,0.00024045,2]
[388410938,1759159840302,-718.02,0.00024045,2]
[388410939,1759159840311,-890.25,0.00024045,2]
[388410940,1759159840320,-480.0,0.00024045,2]
[388410941,1759159840330,-735.68,0.00024045,2]
[388410942,1759159840339,-854.95,0.00024045,2]
[388410943,1759159840353,-1162.84,0.00024045,2]
[388410944,1759159840363,-1078.61,0.00024045,2]
[388410945,1759159840373,-480.0,0.00024045,2]
[388410946,1759159840383,-480.0,0.00024045,2]
[388410947,1759159840392,-480.0,0.00024045,2]
[388410948,1759159840402,-480.0,0.00024045,2]
[388410950,1759159840412,-480.0,0.00024045,2]
[388410951,1759159840423,-482.05150474,0.00024045,2]
[388410952,1759159840434,-1951.61,0.00024045,2]
[388410953,1759159840444,-835.61,0.00024045,2]
[388410955,1759159840454,-480.0,0.00024045,2]
[388410957,1759159840467,-1269.12,0.00024045,2]
[388410959,1759159840477,-480.0,0.00024045,2]
[388410960,1759159840487,-1208.36,0.00024045,2]
[388410962,1759159840497,-480.0,0.00024045,2]
[388410964,1759159840507,-480.0,0.00024045,2]
[388410966,1759159840517,-6110.18,0.00024045,2]
[388410968,1759159840527,-480.0,0.00024045,2]
[388410970,1759159840536,-568.75,0.00024045,2]
[388410972,1759159840546,-2815.55,0.00024045,2]
[388410973,1759159840556,-480.0,0.00024045,2]
[388410974,1759159840566,-683.23,0.00024045,2]
[388410976,1759159840577,-480.0,0.00024045,2]
[388410978,1759159840587,-1393.28,0.00024045,2]
[388410980,1759159840596,-547.89,0.00024045,2]
[388410981,1759159840606,-6369.16,0.00024045,2]
[388410983,1759159840616,-797.57,0.00024045,2]
[388410985,1759159840627,-1204.27,0.00024045,2]
[388410986,1759159840637,-915.2,0.00024045,2]
[388410987,1759159840647,-3371.07,0.00024045,2]
[388410988,1759159840657,-480.0,0.00024045,2]
[388410989,1759159840667,-856.9,0.00024045,2]
[388410990,1759159840677,-964.42,0.00024045,2]
[388410991,1759159840687,-480.0,0.00024045,2]
[388410992,1759159840697,-480.0,0.00024046,2]
[388410993,1759159840706,-480.0,0.00024046,2]
[388410994,1759159840716,-567.36,0.00024046,2]
[388410995,1759159840727,-567.36,0.00024046,2]
[388410996,1759159840736,-582.62,0.00024046,2]
[388410997,1759159840747,-480.0,0.00024046,2]
[388410998,1759159840756,-826.97,0.00024046,2]
[388410999,1759159840766,-906.0,0.00024046,2]
[388411000,1759159840776,-480.0,0.00024046,2]
[388411001,1759159840786,-1257.1,0.00024046,2]
[388411002,1759159840795,-5113.84,0.00024046,2]
[388411003,1759159840806,-480.0,0.00024046,2]
[388411004,1759159840816,-2632.05,0.00024046,2]
[388411005,1759159840826,-581.56,0.00024046,2]
[388411006,1759159840836,-498.97,0.00024046,2]
[388411007,1759159840846,-386.06703618,0.00024046,2]
[388411008,1759159840858,-1877.06,0.00024046,2]
[388411009,1759159840868,-484.42,0.00024046,2]
[388411010,1759159840878,-480.0,0.00024046,2]
[388411011,1759159840887,-536.36,0.00024046,2]
[388411012,1759159840897,-500.0,0.00024047,2]
[388411013,1759159840907,-500.0,0.00024047,2]
[388411014,1759159840917,-500.0,0.00024047,2]
[388411015,1759159840927,-500.0,0.00024047,2]
[388411016,1759159840937,-500.0,0.00024047,2]
[388411017,1759159840947,-1019.0,0.00024047,2]
[388411018,1759159840957,-1444.0,0.00024047,2]
[388411019,1759159840968,-500.0,0.00024047,2]
[388411020,1759159840978,-151.0,0.00024047,2]
[388411021,1759159840989,-500.0,0.00024047,2]
[388411022,1759159840999,-257.31318688,0.00024047,2]
[388411023,1759159841009,-151.0,0.00024047,2]
[388411024,1759159841018,-192.28915233,0.00024047,2]
[388411025,1759159841028,-500.0,0.00024047,2]
[388411026,1759159841038,-512.41710069,0.00024047,2]
[388411027,1759159841047,-500.0,0.00024047,2]
[388411028,1759159841056,-151.0,0.00024047,2]
[388411029,1759159841066,-500.0,0.00024047,2]
[388411030,1759159841076,-152.46363671,0.00024047,2]
[388411031,1759159841086,-294.98545417,0.00024047,2]
[388411032,1759159841096,-376.94003019,0.00024047,2]
[388411033,1759159841105,-151.0,0.00024047,2]
[388411034,1759159841117,-500.0,0.00024047,2]
[388411035,1759159841127,-500.0,0.00024047,2]
[388411036,1759159841138,-500.0,0.00024047,2]
[388411037,1759159841148,-480.0,0.00024047,2]
[388411038,1759159841158,-480.0,0.00024047,2]
[388411039,1759159841168,-480.0,0.00024047,2]
[388411040,1759159841179,-480.0,0.00024047,2]
[388411041,1759159841188,-480.0,0.00024047,2]
[388411042,1759159841199,-480.0,0.00024047,2]
[388411043,1759159841209,-480.0,0.00024047,2]
[388411044,1759159841220,-480.0,0.00024047,2]
[388411045,1759159841230,-588.49,0.00024047,2]
[388411046,1759159841240,-480.0,0.00024047,2]
[388411047,1759159841250,-480.0,0.00024047,2]
[388411048,1759159841260,-2241.74,0.00024047,2]
[388411049,1759159841270,-728.19,0.00024047,2]
[388411050,1759159841280,-1570.84,0.00024047,2]
[388411051,1759159841290,-494.51,0.00024047,2]
[388411052,1759159841300,-1284.07,0.00024047,2]
[388411053,1759159841309,-480.0,0.00024047,2]
[388411054,1759159841319,-500.0,0.00024047,2]
[388411055,1759159841329,-480.0,0.00024047,2]
[388411056,1759159841339,-480.0,0.00024047,2]
[388411057,1759159841354,-480.0,0.00024047,2]
[388411058,1759159841364,-480.0,0.00024047,2]
[388411059,1759159841374,-2587.33,0.00024047,2]
[388411060,1759159841384,-480.0,0.00024047,2]
[388411061,1759159841394,-1133.32,0.00024047,2]
[388411062,1759159841404,-480.0,0.00024047,2]
[388411063,1759159841414,-823.04,0.00024047,2]
[388411064,1759159841426,-480.0,0.00024047,2]
[388411065,1759159841439,-888.85,0.00024047,2]
[388411066,1759159841448,-482.64,0.00024047,2]
[388411067,1759159841458,-804.75,0.00024047,2]
[388411068,1759159841468,-480.0,0.00024047,2]
[388411069,1759159841478,-829.13,0.00024047,2]
[388411070,1759159841487,-480.0,0.00024047,2]
[388411071,1759159841497,-2563.21,0.00024047,2]
[388411072,1759159841506,-729.34,0.00024047,2]
[388411073,1759159841517,-778.05,0.00024047,2]
[388411074,1759159841527,-746.59,0.00024047,2]
[388411075,1759159841536,-805.62,0.00024047,2]
[388411076,1759159841546,-831.56,0.00024047,2]
[388411077,1759159841555,-732.65,0.00024047,2]
[388411078,1759159841566,-480.0,0.00024047,2]
[388411079,1759159841575,-480.0,0.00024047,2]
[388411080,1759159841585,-2465.15,0.00024047,2]
[388411081,1759159841595,-798.93,0.00024047,2]
[388411082,1759159841604,-1604.22,0.00024047,2]
[388411083,1759159841614,-722.31,0.00024047,2]
[388411084,1759159841623,-724.42,0.00024047,2]
[388411085,1759159841632,-480.0,0.00024047,2]
[388411086,1759159841642,-738.99,0.00024047,2]
[388411087,1759159841651,-780.72,0.00024047,2]
[388411088,1759159841661,-483.74,0.00024047,2]
[388411089,1759159841672,-480.0,0.00024047,2]
[388411090,1759159841702,-960.81,0.00024047,2]
[388411091,1759159841712,-2395.09,0.00024047,2]
[388411092,1759159841724,-582.42,0.00024047,2]
[388411093,1759159841734,-480.0,0.00024047,2]
[388411094,1759159841744,-614.95,0.00024047,2]
[388411095,1759159841754,-151.0,0.0002406,2]
[388411096,1759159841763,-151.0,0.0002406,2]
[388411097,1759159841773,-151.0,0.0002406,2]
[388411098,1759159841783,-151.0,0.0002406,2]
[388411099,1759159841792,-151.0,0.0002406,2]
[388411100,1759159841802,-520.0,0.0002406,3]
[388411101,1759159841812,-480.0,0.0002406,2]
[388411102,1759159841822,-151.0,0.000241,5]
[388411103,1759159841832,-2295.99037862,0.00024111,2]
[388411104,1759159841842,-336.0,0.00024138,2]
[388411105,1759159841851,-480.0,0.00024146,2]
[388411106,1759159841861,-480.0,0.00024146,2]
[388411107,1759159841870,-488.84,0.00024146,2]
[388411108,1759159841880,-480.0,0.00024146,2]
[388411109,1759159841889,-480.0,0.00024146,2]
[388411110,1759159841899,-500.0,0.00024146,2]
[388411111,1759159841909,-314.36585595,0.00024147,2]
[388411112,1759159841918,-500.0,0.00024147,2]
[388411113,1759159841928,-151.0,0.00024147,2]
[388411114,1759159841937,-151.0,0.00024147,2]
[388411115,1759159841947,-500.0,0.00024147,2]
[388411116,1759159841957,-151.0,0.00024147,2]
[388411117,1759159841967,-151.0,0.00024147,2]
[388411118,1759159841976,-500.0,0.00024147,2]
[388411119,1759159841986,-480.0,0.00024147,2]
[388411120,1759159841996,-480.0,0.00024147,2]
[388411121,1759159842005,-533.32,0.00024147,2]
[388411122,1759159842015,-733.5,0.00024147,2]
[388411123,1759159842024,-1131.39,0.00024147,2]
[388411124,1759159842033,-480.0,0.00024147,2]
[388411125,1759159842043,-546.77,0.00024147,2]
[388411126,1759159842052,-619.9,0.00024147,2]